bitfinex-derivatives/quotes_ETHF0:USTF0_20251006
["timestamp","ask_amount","ask_price","bid_price","bid_amount"]
[1759755609765,1.01356848,4583.6,4583.5,1.13779]
[1759755609964,1.40614848,4583.6,4583.5,1.13779]
[1759755610165,1.62724848,4583.6,4583.5,1.13779]
[1759755611164,1.23466848,4583.6,4583.5,1.13779]
[1759755611366,1.45266848,4583.6,4583.5,1.13779]
[1759755611959,0.96680453,4583.6,4583.5,1.13779]
[1759755612162,0.98421241,4583.6,4583.5,1.13779]
[1759755612362,0.76311241,4583.6,4583.5,1.13779]
[1759755612763,0.54511241,4583.6,4583.5,1.13779]
[1759755612964,0.76311241,4583.6,4583.5,1.13779]
[1759755614164,0.33851241,4583.6,4583.5,1.13779]
[1759755614363,0.01991241,4583.6,4583.5,1.21159]
[1759755614866,0.33851241,4583.6,4583.5,1.21159]
[1759755615065,0.33851241,4583.6,4583.5,1.13779]
[1759755616259,0.34363871,4583.6,4583.5,1.13779]
[1759755616662,0.77133871,4583.6,4583.5,1.13779]
[1759755617364,0.34363871,4583.6,4583.5,1.13779]
[1759755617564,0.02503871,4583.6,4583.5,1.13779]
[1759755617767,0.02503871,4583.6,4583.5,1.21159]
[1759755619063,0.02503871,4583.6,4583.5,6.21159]
[1759755619574,0.02503871,4583.6,4583.5,47.01159]
[1759755620465,0.3215,4584.2,4584.1,1.14474]
[1759755620667,0.3215,4584.5,4584.4,1.14471]
[1759755620866,0.80716862,4584.5,4584.4,1.14471]
[1759755621266,1.74916862,4584.5,4584.4,0.7522]
[1759755621460,1.75079545,4584.5,4584.4,0.81611]
[1759755621860,1.01499545,4584.5,4584.4,1.14471]
[1759755622760,1.75079545,4584.5,4584.4,1.14471]
[1759755622958,1.35829545,4584.5,4584.4,1.14471]
[1759755623572,1.35829545,4584.5,4584.4,0.39251]
[1759755623972,1.35829545,4584.5,4584.4,0.60121]
[1759755624272,0.39253,4584.2,4584.1,3.2078]
[1759755624567,0.4243,4583.7,4583.6,0.39258]
[1759755624772,0.7458,4583.7,4583.6,0.81618]
[1759755624974,0.7458,4583.7,4583.6,1.14478]
[1759755625364,0.75639121,4583.7,4583.6,1.14478]
[1759755625872,0.76394947,4583.7,4583.6,0.81618]
[1759755626072,1.15651947,4583.7,4583.6,0.81618]
[1759755626272,0.3215,4583.6,4583.3,41.19261]
[1759755626471,0.7458,4583.4,4583.3,41.19261]
[1759755626774,0.76394947,4583.4,4583.3,41.19261]
[1759755626967,0.76394947,4583.4,4583.3,40.8]
[1759755627276,0.871,4583.0,4582.9,0.60133]
[1759755627772,0.871,4583.0,4582.9,41.40133]
[1759755628074,0.88914947,4583.0,4582.9,41.40133]
[1759755628676,0.88914947,4583.0,4582.9,41.72993]
[1759755630175,0.01814947,4583.0,4582.9,41.72993]
[1759755634674,0.01814947,4583.0,4582.9,46.94793]
[1759755634880,0.5277,4584.0,4583.9,1.14476]
[1759755635181,0.5277,4584.0,4583.9,4.35256]
[1759755635483,0.7457,4584.0,4583.9,4.35256]
[1759755636981,0.8756,4584.0,4583.9,4.35256]
[1759755638781,1.26815,4584.0,4583.9,4.35256]
[1759755638987,1.48395,4584.0,4583.9,3.96]
[1759755639485,1.48395,4584.0,4583.9,3.6314]
[1759755639686,0.8734,4584.0,4583.9,4.02396]
[1759755639879,1.0914,4584.0,4583.9,4.33126]
[1759755641681,0.89372683,4584.5,4584.4,0.4498]
[1759755641882,1.98755335,4584.5,4584.4,0.7571]
[1759755642083,1.76955335,4584.5,4584.4,0.7571]
[1759755642284,1.98755335,4584.5,4584.4,0.7571]
[1759755642682,1.98755335,4584.5,4584.4,0.4498]
[1759755643083,1.98755335,4584.5,4584.4,0.84231]
[1759755643583,1.76955335,4584.5,4584.4,0.84231]
[1759755643888,1.76955335,4584.5,4584.4,1.14961]
[1759755643889,1.98755335,4584.5,4584.4,1.14961]
[1759755644390,1.98755335,4584.5,4584.4,0.84231]
[1759755644986,1.76955335,4584.5,4584.4,0.84231]
[1759755645289,1.59505335,4584.5,4584.4,4.35741]
[1759755646389,1.98755335,4584.5,4584.4,3.9649]
[1759755647384,1.98755335,4584.5,4584.4,4.35741]
[1759755647591,1.59505335,4584.5,4584.4,4.35741]
[1759755647890,1.24815335,4584.5,4584.4,4.35741]
[1759755648980,1.64065335,4584.5,4584.4,3.9649]
[1759755649190,1.97705335,4584.5,4584.4,3.9649]
[1759755649894,1.97705335,4584.5,4584.4,3.4331]
[1759755650593,1.97705335,4584.5,4584.4,3.82561]
[1759755651292,1.58455335,4584.5,4584.4,3.82561]
[1759755651992,1.97705335,4584.5,4584.4,3.82561]
[1759755652191,1.97705335,4584.5,4584.4,3.4331]
[1759755652488,0.39254,4584.1,4584.0,41.19255]
[1759755652683,1.12933,4584.2,4584.1,0.39254]
[1759755653688,1.12933,4584.2,4584.1,0.59734]
[1759755653895,0.7368,4584.2,4584.1,0.59734]
[1759755655792,0.7368,4584.2,4584.1,1.12624]
[1759755656392,0.89929076,4584.2,4584.1,1.12624]
[1759755659403,0.95817451,4584.2,4584.1,1.12624]
[1759755659604,0.38049076,4584.2,4584.1,1.12624]
[1759755660302,0.86377025,4584.2,4584.1,1.12624]
[1759755661609,0.64577025,4584.2,4584.1,1.12624]
[1759755662108,0.16249076,4584.2,4584.1,1.12624]
[1759755662509,0.64605187,4584.2,4584.1,1.12624]
[1759755663310,0.95855187,4584.2,4584.1,1.12624]
[1759755666515,0.64605187,4584.2,4584.1,1.12624]
[1759755666715,0.64605187,4584.2,4584.1,41.92624]
[1759755668809,0.95855187,4584.2,4584.1,41.92624]
[1759755669913,0.64605187,4584.2,4584.1,41.92624]
[1759755670121,0.64700442,4584.2,4584.1,41.92624]
[1759755670712,0.16344331,4584.2,4584.1,41.92624]
[1759755670918,0.16344331,4584.2,4584.1,46.92624]
[1759755671416,0.00162683,4584.5,4584.4,1.12621]
[1759755671606,0.00162683,4584.5,4584.4,4.33401]
[1759755672006,0.00162683,4584.5,4584.4,4.51073862]
[1759755672211,0.00162683,4584.5,4584.4,45.31073862]
[1759755683210,0.00162683,4584.5,4584.4,45.52873862]
[1759755688420,0.9636,4585.5,4585.4,0.60203]
[1759755688619,1.44647063,4585.5,4585.4,0.60203]
[1759755689219,1.38547063,4585.5,4585.4,0.39243]
[1759755689420,1.38720656,4585.5,4585.4,0.60474344]
[1759755689620,1.60520656,4585.5,4585.4,0.60474344]
[1759755690324,1.38720656,4585.5,4585.4,0.91894344]
[1759755690526,1.38720656,4585.5,4585.4,1.13104344]
[1759755693630,0.90433593,4585.5,4585.4,1.13104344]
[1759755695230,0.90433593,4585.5,4585.4,41.61684344]
[1759755695526,1.38664085,4585.5,4585.4,41.93104344]
[1759755695728,1.38664085,4585.5,4585.4,41.61684344]
[1759755696728,1.38664085,4585.5,4585.4,41.92384344]
[1759755697723,1.04998473,4585.5,4585.4,41.92384344]
[1759755697924,0.34397981,4585.5,4585.4,41.92384344]
[1759755698118,0.01337981,4585.5,4585.4,41.92384344]
[1759755698524,0.32437981,4585.5,4585.4,41.92384344]
[1759755698726,0.329278,4585.5,4585.4,41.92384344]
[1759755699220,0.018278,4585.5,4585.4,41.92384344]
[1759755700534,0.02316343,4585.5,4585.4,41.92384344]
[1759755701028,0.311,4586.2,4586.1,0.61877]
[1759755701230,0.311,4586.2,4586.1,4.35547]
[1759755701632,0.4379,4586.5,4586.4,1.14764]
[1759755701826,0.5323,4586.5,4586.4,1.14764]
[1759755702128,0.5338692,4586.5,4586.4,1.14764]
[1759755702429,0.5338692,4586.5,4586.4,1.32232976]
[1759755702626,0.5338692,4586.5,4586.4,0.92998976]
[1759755702928,0.67684664,4586.5,4586.4,41.2483]
[1759755703526,0.67684664,4586.5,4586.4,41.5553]
[1759755705932,0.54854664,4586.5,4586.4,41.5553]
[1759755707235,0.01624664,4586.5,4586.4,41.5553]
[1759755707437,0.32724664,4586.5,4586.4,41.5553]
[1759755708829,0.01624664,4586.5,4586.4,41.5553]
[1759755709439,0.02386899,4586.5,4586.4,41.5553]
[1759755710548,0.03152184,4586.5,4586.4,41.5553]
[1759755713241,0.03282987,4586.5,4586.4,41.5553]
[1759755714544,0.93922987,4586.5,4586.4,0.4483]
[1759755714745,0.4458,4585.7,4585.6,3.2078]
[1759755714940,0.772,4585.7,4585.6,0.2129]
[1759755715242,0.80326067,4585.7,4585.6,0.2129]
[1759755715840,0.80457053,4585.7,4585.6,0.2129]
[1759755716539,0.80457053,4585.7,4585.6,0.7456]
[1759755716741,0.35877053,4585.7,4585.6,0.7456]
[1759755716940,0.3262,4585.7,4585.6,0.7456]
[1759755717141,0.36008412,4585.7,4585.6,0.7456]
[1759755717339,0.58028412,4585.7,4585.6,0.7456]
[1759755717745,0.80588412,4585.7,4585.6,0.7456]
[1759755717939,0.772,4585.7,4585.6,0.4231]
[1759755718144,0.80719215,4585.7,4585.6,0.4231]
[1759755718846,0.5802,4585.5,4585.4,0.39144591]
[1759755719046,0.9485083,4585.5,4585.4,0.39144591]
[1759755719249,0.9485083,4585.5,4585.4,0.00271344]
[1759755720145,0.95106927,4585.5,4585.4,0.00271344]
[1759755720946,5.9861326,4585.5,4585.1,3.2078]
[1759755721149,0.772,4584.7,4584.6,3.2078]
[1759755721449,0.772,4584.7,4584.6,44.0078]
[1759755722047,0.772,4584.7,4584.6,44.00942564]
[1759755722246,0.81666927,4584.7,4584.6,3.20942564]
[1759755722449,0.81666927,4584.7,4584.6,0.00162564]
[1759755724040,0.04466927,4584.7,4584.6,3.95502564]
[1759755724242,0.37086927,4584.7,4584.6,3.95502564]
[1759755724440,0.59106927,4584.7,4584.6,3.95502564]
[1759755725248,1.20915927,4584.7,4584.6,0.42472564]
[1759755725542,0.81666927,4584.7,4584.6,0.00162564]
[1759755726949,0.82467433,4584.7,4584.6,0.00162564]
[1759755727850,0.83272761,4584.7,4584.6,0.00162564]
[1759755728745,0.772,4584.7,4584.6,0.00162564]
[1759755728953,1.23253295,4584.7,4584.6,0.00162564]
[1759755730753,1.23829854,4584.7,4584.6,0.00162564]
[1759755731052,1.16456,4583.8,4583.7,0.39257]
[1759755731249,0.772,4583.8,4583.7,0.60547]
[1759755731549,0.5464,4583.8,4583.7,41.72797]
[1759755731849,1.05634,4584.1,4584.0,0.34929146]
[1759755732352,0.71876,4583.8,4583.7,40.80178769]
[1759755732748,0.71876,4583.8,4583.7,41.12138769]
[1759755733052,0.71876,4583.8,4583.7,40.80178769]
[1759755734758,0.3262,4583.8,4583.7,40.80178769]
[1759755735260,1.16456,4583.8,4583.7,0.00178769]
[1759755736652,8.99745436,4583.8,4583.7,0.00178769]
[1759755736852,0.772,4582.9,4582.8,3.2078]
[1759755737155,0.772,4582.9,4582.8,44.2207]
[1759755737359,0.772,4582.9,4582.8,3.2078]
[1759755737853,0.77367093,4582.9,4582.8,3.20934816]
[1759755740459,0.77367093,4582.9,4582.8,3.42634816]
[1759755741951,0.77367093,4582.9,4582.8,3.64574816]
[1759755743551,0.790616,4582.9,4582.8,3.64574816]
[1759755743954,1.183256,4582.9,4582.8,4.03839816]
[1759755744257,1.18963125,4582.9,4582.8,4.35819816]
[1759755744758,1.18963125,4582.9,4582.8,3.64574816]
[1759755745555,1.18963125,4582.9,4582.8,4.03839816]
[1759755746555,1.18963125,4582.9,4582.8,4.35819816]
[1759755746755,1.18963125,4582.9,4582.8,3.96554816]
[1759755747961,1.18963125,4582.9,4582.8,3.42634816]
[1759755748356,1.18963125,4582.9,4582.8,3.64574816]
[1759755749763,1.16631093,4582.9,4582.8,3.64574816]
[1759755749960,1.1920703,4582.9,4582.8,3.64574816]
[1759755750563,1.1920703,4582.9,4582.8,3.96554816]
[1759755753069,1.1920703,4582.9,4582.8,4.35819816]
[1759755754469,1.1920703,4582.9,4582.8,3.96554816]
[1759755754963,0.0274303,4582.9,4582.8,8.96554816]
[1759755755162,0.39253,4584.2,4584.1,0.2176]
[1759755755364,0.39252,4584.3,4584.2,0.7438]
[1759755755562,0.93012,4584.3,4584.2,0.7438]
[1759755755761,0.72192,4584.3,4584.2,0.7438]
[1759755756068,0.72418473,4584.3,4584.2,0.7438]
[1759755756265,0.00226473,4584.3,4584.2,0.7438]
[1759755763174,0.33166473,4584.3,4584.2,0.7438]
[1759755764562,0.53986473,4584.3,4584.2,0.7438]
[1759755764969,0.75056473,4584.3,4584.2,0.2176]
[1759755765674,0.4189,4584.1,4584.0,44.0078]
[1759755765973,0.7483,4584.1,4584.0,44.0078]
[1759755767079,0.7483,4584.1,4584.0,44.3154]
[1759755770878,0.7483,4584.1,4584.0,44.70795]
[1759755771379,0.7483,4584.1,4584.0,4.34575]
[1759755773978,0.7483,4584.1,4584.0,3.9532]
[1759755774184,1.14084,4584.1,4584.0,3.6456]
[1759755775075,1.14084,4584.1,4584.0,4.03815]
[1759755775279,1.14084,4584.1,4584.0,4.35795]
[1759755775280,0.7483,4584.1,4584.0,4.35795]
[1759755780486,0.5376,4584.1,4584.0,4.35795]
[1759755780686,0.3294,4584.1,4584.0,4.35795]
[1759755781986,1.14044,4584.1,4584.0,3.9654]
[1759755783086,1.14044,4584.1,4584.0,3.6456]
[1759755783294,1.2838,4583.5,4583.4,0.7576]
[1759755783495,1.5018,4583.5,4583.4,0.7576]
[1759755783895,1.5018,4583.5,4583.4,1.1502]
[1759755784193,1.1092,4583.5,4583.4,1.1502]
[1759755785591,1.1092,4583.5,4583.4,0.4378]
[1759755785991,1.50179,4583.5,4583.4,0.7576]
[1759755786493,1.50179,4583.5,4583.4,0.4378]
[1759755787598,0.7563,4583.4,4583.3,3.2078]
[1759755787897,0.7563,4583.4,4583.3,4.03821]
[1759755788096,0.7563,4583.4,4583.3,4.35801]
[1759755789507,0.39252,4584.4,4584.1,0.39254]
[1759755789697,0.218,4584.5,4584.2,1.15013]
[1759755790794,0.3378,4584.7,4584.2,1.15013]
[1759755790992,0.3378,4585.7,4585.3,0.4378]
[1759755791196,0.82172692,4585.6,4585.5,0.7576]
[1759755792201,0.82330184,4585.6,4585.5,0.7576]
[1759755792501,0.33937492,4585.6,4585.5,0.7576]
[1759755793200,0.55037492,4585.6,4585.5,0.7576]
[1759755793400,0.75787492,4585.6,4585.5,0.4378]
[1759755795300,0.75787492,4585.6,4585.5,0.7576]
[1759755795705,0.4727,4585.5,4585.4,40.8]
[1759755796108,0.39247,4584.9,4584.6,0.2248]
[1759755796299,0.4185,4584.7,4584.6,0.4378]
[1759755796612,0.4185,4584.7,4584.6,41.5576]
[1759755796905,0.7563,4584.7,4584.6,41.5576]
[1759755797101,0.7563,4584.7,4584.6,0.7576]
[1759755798513,0.7563,4584.7,4584.6,0.4378]
[1759755798708,0.60091,4584.4,4584.3,3.2078]
[1759755799011,1.13641,4584.4,4584.3,3.4247]
[1759755801306,0.7439,4584.4,4584.3,3.4247]
[1759755801609,0.7439,4584.4,4584.3,3.6465]
[1759755802514,0.00157492,4585.6,4584.3,8.6465]
[1759755802706,0.5192,4586.3,4586.2,0.7584]
[1759755803009,1.00277382,4586.3,4586.2,0.7584]
[1759755803211,0.3108,4586.8,4586.7,0.7584]
[1759755803407,1.00250277,4586.8,4586.7,1.15072]
[1759755803608,1.22213378,4586.8,4586.7,1.15302973]
[1759755803813,1.00413378,4586.8,4586.7,1.15302973]
[1759755804014,0.00163101,4586.8,4586.7,1.15302973]
[1759755808309,0.3108,4588.2,4587.8,0.39222]
[1759755808514,0.3108,4588.2,4587.6,0.3197]
[1759755808515,0.7439,4588.2,4588.1,0.8309]
[1759755808722,0.9619,4588.2,4588.1,0.7584]
[1759755808911,0.9619,4588.2,4588.1,0.4387]
[1759755809310,0.96451985,4588.2,4588.1,0.4387]
[1759755810211,0.96451985,4588.2,4588.1,0.7584]
[1759755810212,0.74651985,4588.2,4588.1,0.7584]
[1759755810413,0.52181985,4588.2,4588.1,4.3584]
[1759755810612,0.00261985,4588.2,4588.1,4.3584]
[1759755810806,0.31341985,4588.2,4588.1,4.3584]
[1759755811014,0.74651985,4588.2,4588.1,3.6465]
[1759755811208,0.75864309,4588.2,4588.1,3.9662]
[1759755811412,0.53394309,4588.2,4588.1,3.9662]
[1759755812920,0.32554309,4588.2,4588.1,3.9662]
[1759755813116,0.52181985,4588.2,4588.1,3.9662]
[1759755813319,0.53879801,4588.2,4588.1,3.9662]
[1759755815122,0.33039801,4588.2,4588.1,3.9662]
[1759755815432,0.01959801,4588.2,4588.1,3.9662]
[1759755816121,0.2219,4589.4,4589.3,0.7409]
[1759755816320,0.2949,4589.4,4589.3,0.7409]
[1759755816521,0.7669,4589.4,4589.3,0.4408]
[1759755816720,0.5605,4589.4,4589.3,0.7409]
[1759755817023,0.56252183,4589.4,4589.3,0.7409]
[1759755818119,0.34062183,4589.4,4589.3,0.7409]
[1759755818319,0.76892183,4589.4,4589.3,0.4408]
[1759755818527,0.7819355,4589.4,4589.3,0.4408]
[1759755819319,0.7819355,4589.4,4589.3,0.2219]
[1759755819621,1.15905,4588.7,4588.6,0.4408]
[1759755820324,1.15905,4588.7,4588.6,41.2408]
[1759755820520,1.17206367,4588.7,4588.6,41.2408]
[1759755820720,1.17206367,4588.7,4588.6,0.4408]
[1759755821922,1.17206367,4588.7,4588.6,0.2219]
[1759755822115,0.39219,4588.2,4588.0,3.9001]
[1759755822321,0.5605,4588.2,4588.1,0.7409]
[1759755822623,0.57351367,4588.2,4588.1,41.5409]
[1759755823724,0.57351367,4588.2,4588.1,41.2408]
[1759755825121,0.39227,4587.3,4587.1,0.3001]
[1759755825430,0.82061,4586.8,4586.7,0.44310973]
[1759755825631,1.15921,4586.8,4586.7,0.44310973]
[1759755825924,1.15921,4586.8,4586.7,0.00230973]
[1759755826523,1.17222367,4586.8,4586.7,0.00230973]
[1759755827824,1.17321246,4586.8,4586.7,0.00230973]
[1759755828325,0.39237,4586.1,4586.0,3.2078]
[1759755828532,1.38167,4586.1,4586.0,3.4166]
[1759755828832,1.39567246,4586.1,4586.0,3.4166]
[1759755829328,1.39567246,4586.1,4586.0,3.63899908]
[1759755829632,1.39827215,4586.1,4586.0,3.93839908]
[1759755830020,1.39827215,4586.1,4586.0,3.63899908]
[1759755830626,1.40543563,4586.1,4586.0,3.63899908]
[1759755830827,1.40543563,4586.1,4586.0,3.93839908]
[1759755831734,1.40543563,4586.1,4586.0,3.63899908]
[1759755832233,0.97413563,4586.1,4586.0,3.93839908]
[1759755832430,1.17933563,4586.1,4586.0,3.93839908]
[1759755832633,1.40543563,4586.1,4586.0,3.63899908]
[1759755832833,1.41258922,4586.1,4586.0,3.63899908]
[1759755833627,0.03091922,4586.1,4586.0,3.93839908]
[1759755833935,0.03091922,4586.1,4586.0,4.04149908]
[1759755834134,0.03091922,4586.1,4586.0,3.93839908]
[1759755836538,0.57511922,4586.1,4586.0,3.93839908]
[1759755836739,0.80121922,4586.1,4586.0,3.63899908]
[1759755839038,0.80568899,4586.1,4586.0,3.93839908]
[1759755839540,0.57958899,4586.1,4586.0,3.93839908]
[1759755840240,0.97195899,4586.1,4586.0,3.93839908]
[1759755840640,0.76675899,4586.1,4586.0,3.93839908]
[1759755842138,0.76675899,4586.1,4586.0,3.63899908]
[1759755842139,1.19805899,4586.1,4586.0,3.63899908]
[1759755842335,1.19805899,4586.1,4586.0,0.43119908]
[1759755842640,1.19911798,4586.1,4586.0,0.00279908]
[1759755842942,6.19911798,4586.1,4586.0,0.00279908]
[1759755848652,6.41811798,4586.1,4586.0,0.00279908]
[1759755849941,6.41811798,4586.1,4586.0,1.12297908]
[1759755849942,0.37544798,4586.1,4586.0,1.12297908]
[1759755850148,0.03644798,4586.1,4586.0,5.85149908]
[1759755850450,0.39234,4586.4,4586.3,0.7278]
[1759755850747,0.39234,4586.4,4586.3,44.7356]
[1759755851241,0.39480154,4586.4,4586.3,44.7356]
[1759755852249,0.73380154,4586.4,4586.3,40.8]
[1759755852449,0.73380154,4586.4,4586.0,0.00279908]
[1759755852450,1.16267,4586.1,4586.0,0.00279908]
[1759755852652,1.38167,4586.1,4586.0,0.00279908]
[1759755853150,1.38167,4586.1,4586.0,0.21159908]
[1759755853552,1.38167,4586.1,4586.0,0.43119908]
[1759755853845,0.95037,4586.1,4586.0,0.73059908]
[1759755854148,0.39236,4586.2,4586.1,0.7278]
[1759755854352,0.93656,4586.2,4586.1,0.4284]
[1759755854650,1.16266,4586.2,4586.1,0.4284]
[1759755856151,1.64540541,4586.2,4586.1,0.4284]
[1759755856351,1.16266,4586.2,4586.1,0.4284]
[1759755856649,1.64540158,4586.2,4586.0,0.00279908]
[1759755856952,1.16266,4586.2,4586.1,0.2088]
[1759755857147,1.64523987,4586.2,4586.1,0.2088]
[1759755857747,1.64523987,4586.2,4586.0,0.00279908]
[1759755857947,1.23087987,4586.1,4586.0,0.00279908]
[1759755858547,1.23087987,4586.1,4586.0,0.21849908]
[1759755859854,1.23087987,4586.1,4586.0,0.00279908]
[1759755860157,1.23087987,4586.1,4586.0,0.21849908]
[1759755860542,1.23087987,4586.1,4586.0,0.00279908]
[1759755860957,1.23087987,4586.1,4586.0,0.21849908]
[1759755861752,0.7483,4586.1,4586.0,0.21849908]
[1759755861955,1.23062191,4586.1,4586.0,0.00279908]
[1759755862150,4.43842191,4586.1,4586.0,0.00279908]
[1759755864651,1.23062191,4586.1,4586.0,0.00279908]
[1759755865058,1.62299191,4586.1,4586.0,0.00279908]
[1759755865351,4.83079191,4586.1,4586.0,0.00279908]
[1759755865952,0.1323,4585.5,4584.8,3.2078]
[1759755866154,1.14079,4584.7,4584.5,1.56711666]
[1759755866349,0.39255,4584.0,4583.8,3.2078]
[1759755866550,1.27315,4584.0,4583.9,0.4267]
[1759755866755,0.7483,4583.9,4583.8,3.2078]
[1759755866950,0.9673,4583.9,4583.8,3.20986545]
[1759755867147,0.9673,4583.9,4583.8,0.00206545]
[1759755873364,0.7483,4583.9,4583.8,0.00206545]
[1759755873558,0.9673,4583.9,4583.8,0.00206545]
[1759755876569,0.7483,4583.9,4583.8,0.00206545]
[1759755876763,0.9673,4583.9,4583.8,0.00206545]
[1759755876964,0.97831542,4583.9,4583.8,0.00206545]
[1759755877867,1.15187542,4583.9,4583.8,0.22326545]
[1759755878072,1.37087542,4583.9,4583.8,3.64406545]
[1759755878469,1.37087542,4583.9,4583.8,0.00206545]
[1759755878674,1.15187542,4583.9,4583.8,0.00206545]
[1759755878971,1.37087542,4583.9,4583.8,0.00206545]
[1759755879581,1.15187542,4583.9,4583.8,0.00206545]
[1759755879772,1.37087542,4583.9,4583.8,0.00206545]
[1759755880374,1.15187542,4583.9,4583.8,0.00206545]
[1759755880673,1.37087542,4583.9,4583.8,0.00206545]
[1759755880869,1.39017542,4583.9,4583.8,0.22326545]
[1759755881372,1.39017542,4583.9,4583.8,0.00206545]
[1759755881765,4.20484252,4583.9,4583.8,0.00206545]
[1759755881966,1.16586,4582.7,4582.6,3.429]
[1759755882169,1.38486,4582.7,4582.6,3.429]
[1759755882369,1.38486,4582.7,4582.6,44.442]
[1759755882969,1.39870881,4582.7,4582.6,44.44458206]
[1759755885377,1.39870881,4582.7,4582.6,44.74478206]
[1759755886079,1.18600881,4582.7,4582.6,44.74478206]
[1759755888071,1.18600881,4582.7,4582.6,44.44458206]
[1759755888272,1.39910881,4582.7,4582.6,3.21038206]
[1759755889385,1.39910881,4582.7,4582.6,0.00258206]
[1759755891775,4.24017461,4582.7,4582.6,0.00258206]
[1759755892676,0.8311,4582.2,4582.1,3.2078]
[1759755892880,1.3659,4582.2,4582.1,3.2078]
[1759755893081,1.37691542,4582.2,4582.1,3.2078]
[1759755893381,0.4384,4581.6,4581.5,3.6376]
[1759755893687,0.219,4581.6,4581.5,4.33231396]
[1759755893883,0.219,4581.6,4581.5,45.13231396]
[1759755894078,0.23001542,4581.6,4581.5,45.13231396]
[1759755894886,0.23001542,4581.6,4581.5,44.73955396]
[1759755895189,0.54581542,4581.6,4581.5,44.73955396]
[1759755895886,0.01101542,4581.6,4581.5,49.73955396]
[1759755896589,0.32681542,4581.6,4581.5,49.73955396]
[1759755896780,0.32681542,4581.6,4581.5,44.73955396]
[1759755897989,0.71956542,4581.6,4581.5,44.73955396]
[1759755898192,0.71956542,4581.6,4581.5,45.13231396]
[1759755898386,0.01101542,4581.6,4581.5,45.13231396]
[1759755899796,0.40376542,4581.6,4581.5,45.13231396]
[1759755899990,0.40376542,4581.6,4581.5,44.73955396]
[1759755900295,0.01101542,4581.6,4581.5,45.13231396]
[1759755903303,0.40376542,4581.6,4581.5,45.13231396]
[1759755903504,0.01101542,4581.6,4581.5,45.13231396]
[1759755903900,0.71956542,4581.6,4581.5,45.13231396]
[1759755904204,0.32681542,4581.6,4581.5,45.13231396]
[1759755904405,0.01101542,4581.6,4581.5,45.13231396]
[1759755905196,0.01101542,4581.6,4581.5,50.13231396]
[1759755905697,0.063,4582.5,4582.4,0.39268]
[1759755905904,0.54393339,4582.7,4582.6,1.12277]
[1759755906103,0.00283339,4582.7,4582.6,1.12277]
[1759755906709,0.31863339,4582.7,4582.6,1.12277]
[1759755908405,0.00283339,4582.7,4582.6,1.12277]
[1759755909104,0.3158,4583.5,4583.4,1.1227]
[1759755909303,0.3158,4583.5,4583.4,4.3305]
[1759755909801,0.1331,4584.5,4583.6,0.4298]
[1759755910004,1.02898207,4584.3,4584.2,0.4298]
[1759755910202,0.5411,4584.3,4584.2,0.4298]
[1759755910403,0.5411,4584.3,4584.2,1.12263]
[1759755910597,0.00161764,4584.4,4584.2,1.12263]
[1759755910808,0.3158,4585.0,4584.9,0.39247]
[1759755911005,0.39241,4585.6,4585.3,0.2099]
[1759755911006,0.7542,4585.4,4585.3,0.2099]
[1759755911311,0.8873,4585.0,4584.4,3.2078]
[1759755911607,0.5411,4584.5,4584.4,1.12261]
[1759755911802,0.31747267,4584.5,4584.4,4.33201794]
[1759755912009,0.45057267,4584.5,4584.4,44.43920794]
[1759755912407,0.45057267,4584.5,4584.4,44.73950794]
[1759755912711,0.45057267,4584.5,4584.4,44.43920794]
[1759755912904,0.45057267,4584.5,4584.4,44.73950794]
[1759755913507,0.00167267,4584.5,4584.4,44.73950794]
[1759755916106,0.3158,4585.2,4585.1,0.82225]
[1759755916304,0.3158,4585.2,4585.1,4.33035]
[1759755916610,0.3158,4585.5,4585.4,0.7301]
[1759755916810,0.6742,4585.5,4585.4,0.7301]
[1759755917106,0.88981335,4585.5,4585.4,0.4298]
[1759755918407,0.88981335,4585.5,4585.1,3.5081]
[1759755918408,0.39244,4585.2,4585.1,3.2078]
[1759755918713,1.13664,4585.2,4585.1,3.4205]
[1759755919206,0.5301,4585.2,4585.1,3.9414]
[1759755919606,0.7442,4585.2,4585.1,3.6416]
[1759755920114,0.7442,4585.2,4585.1,3.9414]
[1759755920703,0.5301,4585.2,4585.1,3.9414]
[1759755921706,0.3071,4585.2,4585.1,3.9414]
[1759755922010,0.30961335,4585.5,4585.4,0.7336]
[1759755922409,0.00251335,4585.5,4585.4,0.7336]
[1759755922805,0.3071,4586.4,4586.3,0.60505]
[1759755923014,0.39233,4586.6,4586.3,3.6416]
[1759755923218,0.92243,4586.5,4586.4,41.5336]
[1759755923525,0.6651,4586.5,4586.4,41.0127]
[1759755923816,0.6679167,4586.5,4586.4,41.0127]
[1759755924515,0.6679167,4586.5,4586.4,0.7336]
[1759755924715,0.0028167,4586.5,4586.4,0.7336]
[1759755925017,0.0028167,4586.5,4586.4,41.92433606]
[1759755925716,0.0028167,4586.5,4586.4,46.92433606]
[1759755925917,0.6611,4587.5,4587.4,0.7308]
[1759755926116,0.8841,4587.5,4587.4,3.9386]
[1759755926915,0.88640415,4587.5,4587.4,3.9386]
[1759755927217,0.88640415,4587.5,4587.4,3.6416]
[1759755927716,0.90287205,4587.5,4587.4,3.6416]
[1759755928411,0.90287205,4587.5,4587.4,3.9386]
[1759755928716,0.911106,4587.5,4587.4,3.9386]
[1759755929416,0.911106,4587.5,4587.4,3.6416]
[1759755929616,1.125206,4587.5,4587.4,3.6416]
[1759755932011,1.125206,4587.5,4587.4,0.4338]
[1759755932812,1.13049465,4587.5,4587.4,0.4338]
[1759755934012,0.39228,4587.1,4587.0,0.2127]
[1759755934218,1.13648,4587.1,4587.0,0.2127]
[1759755934611,1.13648,4587.1,4587.0,0.4338]
[1759755934807,0.03229465,4587.5,4587.1,0.39227]
[1759755935013,0.03229465,4587.5,4587.0,0.5525]
[1759755935014,0.00230415,4587.5,4587.4,3.9044095]
[1759755935512,0.33770415,4587.5,4587.4,3.9044095]
[1759755936012,0.00230415,4587.5,4587.4,3.9044095]
[1759755936608,0.00230415,4587.5,4587.4,44.7044095]
[1759755937512,0.4704,4588.5,4588.1,0.6943]
[1759755937513,0.39219,4588.2,4588.1,0.6943]
[1759755937822,0.39219,4588.2,4588.1,3.9021]
[1759755938116,0.72759,4588.2,4588.1,3.9021]